Cogmind - Beta 15 @@@ ROGUE MODE // 2025.07.08 @ 10:01:40 Player: beans Result: Destroyed by D-53 Grenadier with Mini Grenade Launcher Performance ------------- Evolutions (0) 0 Regions Visited (2) 400 Robots Destroyed (15) 75 Value Destroyed (281) 281 Prototype IDs (0) 0 Alien Tech Used (0) 0 Bonus (0) 0 TOTAL SCORE: 756 Bonus ------- None Cogmind --------- Core Integrity 0/250 Matter 279/300 Energy 99/100 System Corruption 0% Temperature Cool (8) Movement Core (50) Location -10/Mines Parts ------- > --- POWER (1) -------- (None) > --- PROPULSION (2) --- (None) > --- UTILITY (2) ------ Targeting Computer Targeting Computer > --- WEAPON (2) ------- (None) > --- INVENTORY (5) ---- Medium Matter Pod (0) Assault Rifle Peak State ------------ > --- POWER ------------ Light Ion Engine > --- PROPULSION ------- Light Treads Light Treads > --- UTILITY ---------- Medium Matter Pod Medium Matter Pod > --- WEAPON ----------- Medium Laser Assault Rifle > --- INVENTORY -------- Grenade Launcher [Rating: 7] Favorites ----------- Power Light Ion Engine Engine Light Ion Engine Propulsion Light Treads Treads Light Treads Flight Unit Flight Unit Utility Medium Matter Pod Storage Medium Matter Pod Processor Targeting Computer Weapon Assault Rifle Energy Gun Medium Laser Ballistic Gun Assault Rifle Launcher Grenade Launcher Build | -11 -10 -10 ------- Run | Yrd Mat Min Slots Evolved . | . . . Power . | . . . Propulsion . | . . . Utility . | . . . Weapon . | . . . Parts Attached 13 | 4 4 5 Power 1 | . . 1 Engine 1 | . . 1 Core . | . . . Reactor . | . . . Propulsion 4 | 2 2 . Treads 2 | 2 . . Leg . | . . . Wheel . | . . . Hover . | . . . Flight 2 | . 2 . Utility 4 | . 2 2 Device . | . . . Storage 2 | . 2 . Processor 2 | . . 2 Hackware . | . . . Protection . | . . . Artifact . | . . . Weapon 4 | 2 . 2 Energy Gun 1 | . . 1 Energy Cannon . | . . . Ballistic Gun 2 | 2 . . Ballistic Cannon . | . . . Launcher 1 | . . 1 Special Weapon . | . . . Impact Weapon . | . . . Slashing Weapon . | . . . Piercing Weapon . | . . . Special Melee Weapon . | . . . Unidentified Prototypes . | . . . Parts Lost 9 | . 3 6 Power 1 | . . 1 Propulsion 4 | . 2 2 Utility 1 | . . 1 Weapon 3 | . 1 2 Highest Loss Streak 5 | . 2 5 To Critical Strikes . | . . . Average Backups 2 | . 3 1 Power . | . 1 . Propulsion . | . 1 . Utility . | . . . Weapon 1 | . 1 1 Tool/Special . | . . . Unused Backups . | . . . Power . | . . . Propulsion . | . . . Utility . | . . . Weapon . | . . . Tool/Special . | . . . Average Slot Usage (%) 69 | . 47 89 Engine 6 | . . 12 Treads 17 | . 8 25 Flight 4 | . 10 . Storage 8 | . . 15 Processor 4 | . . 8 Energy Gun 6 | . . 12 Ballistic Gun 16 | . 27 5 Launcher 4 | . . 8 Peak Build Rating 7 | 4 4 7 Average Rating 4 | 2 3 6 On Entrance 2 | . 4 3 Naked Turns . | . . . Heaviest Build 11 | 3 6 11 Greatest Support 40 | 40 40 40 Greatest Overweight (x) 1 | . 1 1 Average Overweight (x) . | . . . Largest Inventory Capacity 5 | 5 5 5 Average Capacity 5 | 5 5 5 Most Carried 5 | 3 5 5 Average Carried 2 | . 4 1 Final Capacity 5 | 5 5 5 Final Carried 5 | 1 5 2 Class Distribution -------------------- 100% | Mutant Dominant Class ---------------- Mutant | -10/Materials Mutant | -10/Mines Resources | -11 -10 -10 ----------- Run | Yrd Mat Min Matter Collected 534 | 246 173 115 Remotely . | . . . Salvage Created 364 | 28 217 119 Parts 25 | 3 18 4 Haulers Intercepted . | . . . Recyclers Shooed . | . . . Parts Field Recycled . | . . . Retrieved Matter . | . . . Parts Self-Destructed . | . . . Prevented . | . . . Kills | -11 -10 -10 ------- Run | Yrd Mat Min Combat Hostiles Destroyed 10 | . 6 4 Guns 8 | . 6 2 AOE 2 | . . 2 Classes Destroyed 7 | 1 4 2 Builder 1 | . 1 . Tunneler 1 | 1 . . Recycler 1 | . 1 . Watcher 2 | . 2 . Swarmer 6 | . 6 . Grunt 2 | . . 2 Sentry 2 | . . 2 Best Kill Streak 5 | 1 5 2 Combat Bots Only 3 | . 3 2 Max Kills in Single Turn 2 | 1 2 1 Gunslinging 1 | . 1 . Exploded 1 | . . 1 Melee . | . . . Uniques/NPCs Destroyed . | . . . Combat | -11 -10 -10 -------- Run | Yrd Mat Min Hostile Shots Fired 114 | . 85 29 Missed 38 | . 27 11 Hits 76 | . 58 18 Projectile 76 | . 58 18 AOE 7 | . . 7 Critical Strikes 1 | . 1 . Damage Taken 1016 | . 488 528 Core 289 | . 125 164 Absorbed by Shields . | . . . Core Remaining (%) 100 | 100 . . Volleys Fired 62 | 5 40 17 Largest 2 | 2 2 2 Hottest 80 | 40 40 80 Shots Fired 112 | 7 80 25 Gun 105 | 7 80 18 Cannon . | . . . Launcher 7 | . . 7 Special . | . . . Kinetic 88 | 7 80 1 Thermal 17 | . . 17 Explosive 7 | . . 7 Electromagnetic . | . . . Robot Hit Streak 6 | 6 5 5 Robot Miss Streak 5 | . 5 1 Penetration Max . | . . . Secondary Targets 4 | . 4 . Max Gunslinging Chain 1 | . 1 . Shots Hit Robots 60 | 6 41 13 Core Hits 29 | 2 14 13 Critical Kills . | . . . Critical Parts Destroyed . | . . . Critical Strikes . | . . . Melee Attacks . | . . . Impact . | . . . Slashing . | . . . Piercing . | . . . Sneak Attacks . | . . . Combat Hostiles . | . . . Follow-up Attacks . | . . . Damage Inflicted 846 | 69 421 356 Guns 601 | 69 421 111 Cannons . | . . . Explosions 245 | . . 245 Melee . | . . . Ramming . | . . . Kinetic 501 | 69 421 11 Thermal 100 | . . 100 Explosive 245 | . . 245 Electromagnetic . | . . . Impact . | . . . Slashing . | . . . Piercing . | . . . Highest Corruption . | . . . Average Corruption . | . . . Corruption Purged . | . . . Corruption Blocked . | . . . Overload Shots . | . . . Overflow Damage . | . . . Projectiles . | . . . Explosions . | . . . Melee . | . . . Knockbacks . | . . . Impact . | . . . Kinetic . | . . . Secondary . | . . . Self-Inflicted Damage 40 | . . 40 Shots 3 | . . 3 Rammed . | . . . Targets Rammed . | . . . Kicked . | . . . Crushed . | . . . Highest Temperature 97 | . . 97 Average Temperature 38 | . . 38 Received Heat Transfer 108 | . 24 84 Siege Activations . | . . . Martial Activations . | . . . Shielding Activations . | . . . Robots Disrupted . | . . . Combat Hostiles . | . . . Robots Corrupted . | . . . Combat Hostiles . | . . . Parts Fried . | . . . Impact Corruptions . | . . . Robots Melted . | . . . Combat Hostiles . | . . . Parts Melted 1 | . . 1 Heat Transferred 296 | . . 296 Parts Sabotaged . | . . . Parts Stolen . | . . . Parts Stripped . | . . . Power Chain Reactions . | . . . Alert | -11 -10 -10 ------- Run | Yrd Mat Min Maximum Alert Level . | . . . Low Security (%) 100 | 100 100 100 Level 1 . | . . . Level 2 . | . . . Level 3 . | . . . Level 4 . | . . . Level 5 . | . . . High Security . | . . . Max Security . | . . . Peak Influence 73 | 5 60 73 Initial 10 | . . 10 Average 22 | . 30 25 Influence Increases 300 | 5 179 116 Destroy 0b10 Robot/C 200 | . 120 80 Destroy 0b10 Robot/NC 25 | 5 20 . Destroy Leader 34 | . 24 10 Destroy Structure 26 | . . 26 Lose Combat Pursuer 15 | . 15 . Influence Decreases 300 | 5 150 145 Entered New Map 19 | . . 19 Time Decay 235 | 5 120 110 Lost Part 46 | . 30 16 Squads Dispatched 1 | . 1 . Investigation . | . . . Extermination . | . . . Reinforcement 1 | . 1 . Assault . | . . . Garrison . | . . . Intercept . | . . . Searches Triggered . | . . . Construction Impeded . | . . . Haulers Reinforced . | . . . Active Scanning Responses . | . . . Cargo Convoy Interrupts . | . . . Stealth | -11 -10 -10 --------- Run | Yrd Mat Min Distress Signals 2 | . 2 . Communications Jammed . | . . . Distress Signals . | . . . Times Spotted 19 | . 13 6 Peak Tracking Total 3 | . 3 2 Tactical Retreats 1 | . 1 . Traps | -11 -10 -10 ------- Run | Yrd Mat Min Traps Triggered . | . . . Indirectly . | . . . Trap Hack Attempts . | . . . Triggered . | . . . Disarmed . | . . . Reprogrammed . | . . . Reused . | . . . Traps Extracted . | . . . Installed . | . . . Triggered . | . . . Machines | -11 -10 -10 ---------- Run | Yrd Mat Min Machines Disabled 2 | . . 2 Max in Single Turn 2 | . . 2 Machines Repaired . | . . . Machines Dismantled . | . . . Machines Sabotaged . | . . . Overloaded Fab Kills . | . . . Hacking | -11 -10 -10 --------- Run | Yrd Mat Min Machines Accessed . | . . . Terminals . | . . . Fabricators . | . . . Repair Stations . | . . . Recycling Units . | . . . Scanalyzers . | . . . Garrison Access . | . . . Total Hacks . | . . . Successful . | . . . Failed . | . . . Catastrophic . | . . . Database Lockouts . | . . . Manual . | . . . Terminals . | . . . Fabricators . | . . . Repair Stations . | . . . Recycling Units . | . . . Scanalyzers . | . . . Garrison Access . | . . . Terminal Hacks . | . . . Fabricator Hacks . | . . . Repair Station Hacks . | . . . Recycling Unit Hacks . | . . . Scanalyzer . | . . . Garrison Access Hacks . | . . . Unauthorized Hacks . | . . . Terminals . | . . . Fabricators . | . . . Repair Stations . | . . . Recycling Units . | . . . Scanalyzers . | . . . Garrison Access . | . . . Data Cores Recovered . | . . . Used . | . . . Hacking Detections . | . . . Full Trace Events . | . . . Feedback Events . | . . . Feedback Blocked . | . . . Robot Schematics Acquired . | . . . Robots Built . | . . . Authchips . | . . . Time . | . . . Total Robot Build Rating . | . . . Part Schematics Acquired . | . . . Parts Built . | . . . Authchips . | . . . Time . | . . . Total Part Build Rating . | . . . Parts Repaired . | . . . Time . | . . . Parts Recycled . | . . . Recycled Matter . | . . . Retrieved Matter . | . . . Retrieved Components . | . . . Parts Scanalyzed . | . . . Part Schematics Acquired . | . . . Parts Damaged . | . . . Bothacking | -11 -10 -10 ------------ Run | Yrd Mat Min Used RIF Installer . | . . . Robots Hacked . | . . . Non-combat . | . . . Combat . | . . . Robot Hacks Applied . | . . . Relay Couplers Released . | . . . Fabnet Peak Effective % . | . . . Robots Rewired . | . . . Allies Hacked . | . . . Hacks Repelled . | . . . Allies | -11 -10 -10 -------- Run | Yrd Mat Min Total Allies . | . . . Largest Group . | . . . Highest-Rated Group . | . . . Highest-Rated Ally . | . . . Total Orders . | . . . Ally Attacks . | . . . Total Damage . | . . . Kills . | . . . Allies Corrupted . | . . . Allies Melted . | . . . Intel | -11 -10 -10 ------- Run | Yrd Mat Min Active Infowar (turns) . | . . . Robot Analysis Total . | . . . Derelict Logs Recovered 2 | . . 2 Drone Launches . | . . . Drone Recoveries . | . . . Exploration | -11 -10 -10 ------------- Run | Yrd Mat Min Turns Passed 758 | 142 292 324 Spaces Moved 585 | 88 321 176 Core 124 | 17 87 20 Treads 253 | 71 26 156 Legs . | . . . Wheels . | . . . Hover . | . . . Flight 208 | . 208 . Fastest Speed 37 | 50 37 50 Average Speed 95 | 138 51 152 Slowest Speed 160 | 160 160 160 Overloaded Moves . | . . . Propulsion Burnouts . | . . . Robots Hopped . | . . . Potential Cave-ins . | . . . Cave-ins Triggered . | . . . Exploration Rate (%) 38 | 6 66 44 Regions Visited 2 Branch Regions 1 Pre-discovered Areas 2 | . . 2 Known Exits Taken . | . . . Unknown Exits Taken 2 | 1 1 . Scrap Searched . | . . . Spaces Dug 3 | . . 3 Terrain Destroyed 30 | . . 30 Melee . | . . . Projectile . | . . . AOE 30 | . . 30 Terrain Rammed . | . . . Walls Destroyed . | . . . Machines Disabled . | . . . Actions | -11 -10 -10 --------- Run | Yrd Mat Min Total 678 | 101 372 205 Wait 7 | . 4 3 Move 583 | 87 320 176 Hop . | . . . Pick Up 11 | 5 4 2 Fast Attach 2 | . 2 . Attach 9 | 4 . 5 Detach . | . . . Swap 4 | . 2 2 Drop . | . . . Fire 62 | 5 40 17 Melee . | . . . Ram . | . . . Kick . | . . . Crush . | . . . Escape Stasis . | . . . Rewire . | . . . Trap . | . . . Miscellaneous . | . . . Route ------- -11/Scrapyard -10/Materials (discovered 2 exits: [*Mat] / [*Min]) -10/Mines (discovered 1 exit: [*Mat]) History --------- Turn | Location | Event 7 | -11/Scrapyard | Discovered new exit (range 13) 143 | -11/Scrapyard | Entered Materials 275 | -10/Materials | Discovered new exit (range 16) 302 | -10/Materials | Build established: Mutant 416 | -10/Materials | Discovered new exit (range 14) 435 | -10/Materials | Entered Mines 501 | -10/Mines | Learned location of Zion (-7) 569 | -10/Mines | Core integrity fell below 50% 698 | -10/Mines | Discovered new exit (range 8) 707 | -10/Mines | Assembled infested the area 758 | -10/Mines | Core integrity fell below 20% 759 | -10/Mines | Destroyed by D-53 Grenadier with Mini Grenade Launcher Last Messages --------------- R-06 Scavenger collects Beam Rifle. The unstable cave ceiling collapses. EXIT=FOUND K-01 Serf collects debris. ALERT: Infestation in the mines, dispatching Demolisher response squad. K-01 Serf collects debris. U-05 Engineer lays Concrete. K-01 Serf collects debris. U-05 Engineer lays Concrete. C-30 ARC bursts open, deploying its payload. D-53 Grenadier unfolds itself. U-05 Engineer builds a Wall. Lgt. Treads destroyed. K-01 Serf collects debris. Lgt. Ion Engine destroyed. Grenade Launcher destroyed. U-05 Engineer destroyed. The unstable cave ceiling collapses. Med. Laser destroyed. Map ----- +----------------------------------------------------+ | ???????????????????????????????????# ???????? | | ???????????????????????????????????# ???????? | | ???????????????????????????????????# ???????? | | ???????????????????????????????????# ???????? | | ??????????????????????????????????## ???????? | | ?????????????????????????????????## ???????? | | ?????????????????????????????? ??# ##?????? | | ????????????????????????????#? ??# #?????? | | ????????????????????????????# ?## ##????? | | ????????????????????????????# ## ##???? | | ????????????????????????????# #???? | | ????????????????????????????# < #???? | | ?????????????????????????????# #???? | | ????????????????????????????## #????? | | ????????????????????????????# #????? | | ????????????????????######?# ## ##????? | | ???????????????????##" "### ??## #?????? | | ???????????????????#" / " ## #???# #?????? | | ???????????????????# ###??# #???# #?????? | | ???????????????????# ###??# ##### #?????? | | ??????????#????????## # #### #?????? | | ?????????? ????????# % #######?????? | | ?????????? #???????# ! #???????????? | | ?????????? #??????# #####?????????? | | ?????????? ?????## #?# ####??????? | | ?????????? ?????# @ ## ###??????? | | ?????????? #????# ####????? | | ??????????# #????# # ##???? | | ???####???# #?##### ## d #???? | | ??## ##### ### ####?# rd #???? | | ?## ## ## ##??##### % #???? | | ## #??????# # ##???? | | # ##??????# # ###????? | | ### ## ##???#### ## k##??????? | | #?# #?# ##?## ### ##??????? | | ##?# #??# ### ## ##?????? | | ##??# ##??# ##????? | | #### #???# #### ##???? | | ???## ##???# ## #???? | | ????####????# ##???? | | ????????????## ##### ###????? | | ?????????????## ##???### ##??????? | | ??????????????### #??????## ##???????? | | ????????????????## ##???????# ##????????? | | ?????????????????####????????## ###?????????? | | ??????????????????????????????####???????????? | | ?????????????????????????????????????????????? | | ?????????????????????????????????????????????? | | | | | +----------------------------------------------------+ Best States ------------- Heat Dissipation 25 Energy Generation 10 Energy Capacity 125 Matter Stores 300 Matter Capacity 500 Sight Range 16 Terrain Scan Density 10 Evasion (%) 62 Targeting Accuracy 10 Recoil Reduction 2 Item Schematics ----------------- None Robot Schematics ------------------ None Fabricated ------------ Nothing Repaired ---------- Nothing Alien Tech Used ----------------- None Achievements -------------- None Challenges ------------ None Game ------ Seed GodLongswordFilter Manual? 0 Play Time 00:11:07 Cumulative 42.6 hours Start 2025.07.07 @ 15:38:07 End 2025.07.08 @ 10:01:40 Sessions 2 Manual Loads 0 Difficulty Rogue Special Mode None Game No. 200 Rogue 200 Adventurer 0 Explorer 0 Win Type - Total 0 Types 0/0/0/0/0/0/0/0/0/0 Lore% 32 Gallery% 25 Achievement% 22 Wizard Run 0 Options --------- Layout 2 ASCII 0 Keyboard 0 Movement Mouse Keybinds 0 Fullscreen 1 Font 24/Smallcaps Map View 50x44 Zoom Use 1% Tactical HUD 0 Map Filters NONE Filters NONE Steam 1 RUN: cc2b3763-d2bb-46a9-92db-e965cfb58829